Workbook

Sheet Bilans 2016
A1: Stowarzyszenie Kujawsko-Pomorski Ośrodek Wsparcia | D1: BILANS
A2: Inicjatyw Pozarządowych "Tłok" | G2: REGON:
A3: (nazwa jednostki) | D3: na dzień | E3: 2016-12-31 | G3: (numer statystyczny)
B5: Bilans sporządzony zgodnie z załącznikiem nr 1 do Ustawy o rachunkowości
A7: Wiersz | B7: AKTYWA | C7: Stan na | E7: Wiersz | F7: PASYWA | G7: Stan na
A8: 1 | B8: 2 | C8: początek roku | D8: koniec roku | E8: 1 | F8: 2 | G8: początek roku | H8: koniec roku
A9: A | B9: Aktywa trwałe | C9: =SUM(C10:C14) -> 0.00 | D9: =SUM(D10:D14) -> 0.00 | E9: A | F9: Kapitał (fundusz) własny | G9: =SUM(G10:G18) -> 336,125.28 | H9: =SUM(H10:H18) -> 272,121.43
A10: I | B10: Wartości niematerialne i prawne | E10: I | F10: Kapitał (fundusz) podstawowy
A11: II | B11: Rzeczowe aktywa trwałe | E11: II | F11: Należne wpłaty na kapitał podstawowy (wielkość ujemna)
A12: III | B12: Należności długoterminowe | E12: III | F12: Udziały (akcje) własne wielkość ujemna
A13: IV | B13: Inwestycje długoterminowe | E13: IV | F13: Kapitał (fundusz) zapasowy
A14: V | B14: Długoterminowe rozliczenia międzyokresowe | E14: V | F14: Kapitał (fundusz) z aktualizacji wyceny
A15: B | B15: Aktywa obrotowe | C15: =SUM(C16+C17+C21) -> 340,856.28 | D15: =SUM(D16+D17+D21) -> 1,021,426.33 | E15: VI | F15: Pozostałe kapitały (fundusze) rezerwowe
A16: I | B16: Zapasy rzeczowych aktywów obrotowych | E16: VII | F16: Zysk (strata) z lat ubiegłych
A17: II | B17: Należności krótkoterminowe | C17: 12,107.81 | D17: 2,277.10 | E17: VIII | F17: Zysk (strata) netto | G17: 336,125.28 | H17: ='Rachunek_zysków i strat 2016'!D45 -> 272,121.43
E18: IX | F18: Odpisy z zysku netto w ciągu roku obrotowego (wielkość ujemna)
E19: B | F19: Zobowiązania i rezerwy na zobowiązania | G19: =G20+G21+G22+G23 -> 4,731.00 | H19: =H20+H21+H22+H23 -> 749,304.90
E20: I | F20: Rezerwy na zobowiązania
A21: III | B21: Inwestycje krótkoterminowe | C21: 328,748.47 | D21: =749149.23+270000 -> 1,019,149.23 | E21: II | F21: Zobowiązania długoterminowe
E22: III | F22: Zobowiązania krótkoterminowe | G22: 4,731.00 | H22: 5,082.30
A23: C | B23: Krótkoterminowe rozliczenia międzyokresowe | C23: 0.00 | E23: IV | F23: Rozliczenia międzyokresowe | H23: 744,222.60
B24: Aktywa razem | C24: =SUM(C9+C15+C23) -> 340,856.28 | D24: =SUM(D9+D15+D23) -> 1,021,426.33 | F24: Pasywa razem | G24: =G9+G19 -> 340,856.28 | H24: =SUM(H9+H19) -> 1,021,426.33
B26: Toruń, dnia 31-03-2017 r. | G26: Zatwierdzili:
A27: Data sporządzenia | G27: Ewa Kwiesielewicz- Szyszka-prezeska
G28: Jacek Gądecki –wice prezes
G29: Bożena Kachniarz- skarbniczka

Sheet Rachunek_zysków i strat 2016
A1: Stowarzyszenie Kujawsko-Pomorski Ośrodek Wsparcia | C1: REGON:
A2: Inicjatyw Pozarządowych "Tłok" | C2: (Numer statystyczny)
B3: Rachunek zysków i strat
B5: na dzień 31-12-2016
A6: Rachunek zysków i strat wariant kalkulacyjny zgodnie z zał. Nr 1 do Ustawy o rachunkowości
A8: Pozycja | B8: Wyszczególnienie | C8: Kwota za rok poprzedni | D8: Kwota za rok obrotowy
A10: 1 | B10: 2 | C10: 3 | D10: 4
A11: A. | B11: Przychody z dzialalności statutowej | C11: =C12+C13 -> 1,399,687.71 | D11: =D12+D13 -> 805,593.19
A12: I | B12: Skladki netto okreslone statutem | C12: 7,300.00 | D12: 3,600.00
A13: II | B13: Inne przychody określone statutem | C13: =C14+C15 -> 1,392,387.71 | D13: =D14+D15 -> 801,993.19
A14: 1. | B14: Przychody z działalności nieodpłatnej pożytku publicznego | C14: 1,392,387.71 | D14: 801,993.19
A15: 2. | B15: Przychody z działalności odpłatnej pożytku publicznego
A16: B. | B16: Koszty realizacji zadań statutowych | C16: =C17+C18 -> 1,035,258.65 | D16: =D17+D18 -> 569,997.40
A17: I | B17: Koszty realizacji zadań statutowych działalności nieodpłatnej pożytku publicznego | C17: 1,035,258.65 | D17: =591863.84-21866.44 -> 569,997.40
A18: II | B18: Koszty realizacji zadań statutowych działalności odpłatnej pożytku publicznego
A19: C. | B19: Wynik na działalności statutowej | C19: =C11-C16 -> 364,429.06 | D19: =D11-D16 -> 235,595.79
A20: D. | B20: Przychody ze sprzedaży produktow, uslug, towarów i materiałów | C20: 64,971.43 | D20: 99,027.70
A21: E | B21: Koszt sprzedanych produktów, uslug, towarów i materiałów | C21: 34,320.90 | D21: =22023.94+21866.44 -> 43,890.38
A22: F | B22: Zysk (strata) na sprzedaży | C22: =C20-C21 -> 30,650.53 | D22: =D20-D21 -> 55,137.32
A23: G | B23: Koszty ogólnozakładowe | C23: 61,216.64 | D23: 21,334.26
A24: H | B24: Wynik na działalności statutowej i gospodarczej | C24: =C19+C22-C23 -> 333,862.95 | D24: =D19+D22-D23 -> 269,398.85
A25: I. | B25: Pozostałe przychody operacyjne
A26: J. | B26: Pozostałe koszty operacyjne
A27: K. | B27: Zysk (strata) na działalności operacyjnej | C27: =C24+C25-C26 -> 333,862.95 | D27: =D24+D25-D26 -> 269,398.85
A28: L. | B28: Przychody finansowe | C28: =SUM(C29:C32) -> 2,262.33 | D28: =SUM(D29:D32) -> 2,722.58
A29: I | B29: Odsetki, w tym:- dla jednostek powiązanych | C29: 2,262.33 | D29: 2,722.58
A30: II | B30: Strata ze zbycia inwestycji
A31: III | B31: Aktualizacja wartości inwestycji
A32: IV | B32: Inne
A33: M. | B33: Koszty finansowe | C33: =SUM(C34:C37) -> 0.00 | D33: =SUM(D34:D37) -> 0.00
A34: I | B34: Odsetki, w tym:- dla jednostek powiązanych
A35: II | B35: Strata ze zbycia inwestycji
A36: III | B36: Aktualizacja wartości inwestycji
A37: IV | B37: Inne
A38: N. | B38: Zysk (strata) ze sprzedaży | C38: =C27+C28-C33 -> 336,125.28 | D38: =D27+D28-D33 -> 272,121.43
A39: O. | B39: Wynik zdarzeń nadzwyczajnych (M.I.-M.II.) | C39: =C40-C41 -> 0.00 | D39: =D40-D41 -> 0.00
A40: I. | B40: Zyski nadzwyczajne
A41: II. | B41: Straty nadzwyczajne
A42: P. | B42: Zysk (strata) brutto (L±M) | C42: =C38+C39 -> 336,125.28 | D42: =D38+D39 -> 272,121.43
A43: R. | B43: Podatek dochodowy
B44: Pozostałe obowiązkowe zmniejszenia zysku (zwiększenia straty)
A45: S. | B45: Zysk (strata) netto (N-O-P) | C45: =C42-C43-C44 -> 336,125.28 | D45: =D42-D43-D44 -> 272,121.43
A49: Data sporządzenia:
C50: Zatwierdzili:
A51: Toruń, dnia 31-03-2017 r. | C51: Ewa Kwiesielewicz- Szyszka-prezeska
C52: Jacek Gądecki –wice prezes
C53: Bożena Kachniarz- skarbniczka
